{"text_format":"1","workbook":"xlsx","n_sheets":3,"sheets":["Spørgeskema - Pæd team","Spørgeskema - Klient","Grafisk opgørelse"],"not_rendered":{"charts":4,"images":0,"macros":0,"external_links":0,"defined_names":0,"comments":0,"pivot_tables":0},"unopened":[],"bounds":{"document_bytes":16777216,"sheet_cells":100000,"rows_first":2000,"rows_last":500,"rows_between":2000,"halvings":0,"cell_chars":16384,"cell_head_chars":4096},"cells_cut":0,"cells_raw":0,"read":"whole","date_system":"1900"}

{"sheet":"Spørgeskema - Pæd team","index":0,"n_rows":66,"n_cols":13,"rows_kept":66,"cut":false,"hidden":false,"merged":[]}
[null,"ASPERGER- OG AUTISMETEST","Helt enig","Lidt enig","Lidt uenig","Helt uenig","Score","Score",null,"kommunikation","det sociale","forestillingsevne","opmærksomhed"]
[1,"Jeg foretrækker at gøre ting med andre i stedet for alene.   ",null,null,null,1,null,{"$f":"SUM(E2+F2)","v":1},null,null,{"$f":"(H2)","v":1}]
[2,"Jeg foretrækker at gøre ting på samme måde igen og igen.  ",null,1,null,null,{"$f":"SUM(C3+D3)","v":1},null,null,null,null,{"$f":"(G3)","v":1}]
[3,"Hvis jeg forsøger at forestille mig noget, finder jeg det meget nemt at danne et indre billede",null,null,1,null,null,{"$f":"SUM(E4+F4)","v":1},null,null,null,{"$f":"(H4)","v":1}]
[4,"Jeg bliver ofte så stærkt optaget af én ting, at jeg taber interessen for andre ting.",1,null,null,null,{"$f":"SUM(C5+D5)","v":1},null,null,null,null,null,{"$f":"(G5)","v":1}]
[5,"Jeg bemærker ofte små lyde, når andre ikke gør det",null,1,null,null,null,{"$f":"SUM(E6+F6)","v":0},null,null,null,{"$f":"(H6)","v":0}]
[6,"Jeg bemærker normalt bil nummerplader eller den slags informationer",null,1,null,null,null,{"$f":"SUM(E7+F7)","v":0},null,null,null,null,{"$f":"(H7)","v":0}]
[7,"Andre mennesker fortæller mig ofte, at det jeg sagde er uhøfligt, selvom jeg synes det er høfligt",1,null,null,null,null,{"$f":"SUM(E8+F8)","v":0},null,{"$f":"(H8)","v":0},{"$f":"(H8)","v":0}]
[8,"Når jeg læser en historie, kan jeg nemt forestille mig, hvordan personerne ser ud",null,1,null,null,{"$f":"SUM(C9+D9)","v":1},null,null,null,null,{"$f":"(G9)","v":1}]
[9,"Jeg er fascineret af datoer",null,null,null,1,null,{"$f":"SUM(E10+F10)","v":1},null,null,null,null,{"$f":"(G10)","v":0}]
[10,"I en social gruppe kan jeg nemt holde øje med flere forskellige menneskers samtaler",null,1,null,null,{"$f":"SUM(C11+D11)","v":1},null,null,null,{"$f":"(G11)","v":1}]
[11,"Jeg finder det nemt at indgå i forskellige sociale forhold",null,1,null,null,{"$f":"SUM(C12+D12)","v":1},null,null,null,{"$f":"(G12)","v":1}]
[12,"Jeg har tendens til at lægge mærke til detaljer, som andre ikke gør.         ",null,1,null,null,null,{"$f":"SUM(E13+F13)","v":0},null,null,null,null,{"$f":"H13","v":0}]
[13,"Jeg vil hellere gå på et bibliotek end til en fest",null,null,1,null,null,{"$f":"SUM(E14+F14)","v":1},null,null,{"$f":"(H14)","v":1}]
[14,"Jeg finder ud af at lave historier nemt",null,null,1,null,{"$f":"SUM(C15+D15)","v":0},null,null,{"$f":"(G15)","v":0}]
[15,"Jeg finder mig selv tiltrukket stærkere til ting end mennesker",null,null,1,null,{"$f":"SUM(C16+D16)","v":0},null,null,null,{"$f":"(G16)","v":0}]
[16,"Jeg har tendens til at have meget stærke interesser, som jeg bliver ked af, hvis jeg ikke kan forfølge",null,1,null,null,null,{"$f":"SUM(E17+F17)","v":0},null,null,null,{"$f":"(H17)","v":0}]
[17,"Jeg nyder social smalltalk",null,1,null,null,{"$f":"SUM(C18+D18)","v":1},null,null,{"$f":"(G18)","v":1},{"$f":"(G18)","v":1}]
[18,"Når jeg taler, er det ikke altid let for andre at få et ord i indført.    ",null,null,null,1,null,{"$f":"SUM(E19+F19)","v":1},null,{"$f":"(H19)","v":1},{"$f":"H19","v":1}]
[19,"Jeg er fascineret af tal",null,null,null,1,null,1,null,null,null,{"$f":"(H20)","v":1},{"$f":"(H20)","v":1}]
[20,"Når jeg læser en historie, finder jeg det svært at se personernes intentioner",null,null,1,null,null,1,null,null,{"$f":"(H21)","v":1},{"$f":"(H21)","v":1}]
[21,"Jeg kan ikke lide fiktions genren",null,null,null,1,null,1,null,null,null,{"$f":"(H22)","v":1}]
[22,"Jeg synes det er svært at få nye venner",null,1,null,null,null,0,null,{"$f":"(H23)","v":0},{"$f":"(H23)","v":0}]
[23,"Jeg ser mønstre i ting hele tiden.     ",null,null,1,null,null,1,null,null,null,{"$f":"(H24)","v":1},{"$f":"(H24)","v":1}]
[24,"Jeg vil hellere gå i teatret end på et museum.   ",null,1,null,null,{"$f":"SUM(C25+D25)","v":1},null,null,null,{"$f":"(G25)","v":1},{"$f":"(G25)","v":1}]
[25,"Det forstyrrer mig ikke, hvis min daglige rutine er forstyrret.    ",null,null,1,null,{"$f":"SUM(C26+D26)","v":0},null,null,null,{"$f":"(G26)","v":0},{"$f":"(G26)","v":0}]
[26,"Jeg ved ikke, hvordan man holder en samtale i gang",null,null,null,1,null,{"$f":"SUM(E27+F27)","v":1},null,{"$f":"(H27)","v":1},{"$f":"(H27)","v":1}]
[27,"Jeg finder det nemt at 'læse mellem linjerne', når nogen taler til mig.         ",null,null,1,null,{"$f":"SUM(C28+D28)","v":0},null,null,{"$f":"(G28)","v":0},null,{"$f":"(G28)","v":0}]
[28,"Jeg plejer at koncentrere mig om hele billedet, snarere end på de små detaljer. ",null,null,1,null,0,null,null,null,null,{"$f":"(G29)","v":0},{"$f":"(G29)","v":0}]
[29,"Jeg er ikke særlig god til at huske telefonnumre",1,null,null,null,1,null,null,null,null,null,{"$f":"(G30)","v":1}]
[30,"Jeg bemærker normalt ikke små ændringer i en situation eller en persons udseende",1,null,null,null,1,null,null,null,null,{"$f":"(G31)","v":1},{"$f":"(G31)","v":1}]
[31,"Jeg ved, om nogen, der lytter til mig, keder sig.",null,null,null,1,0,null,null,{"$f":"(G32)","v":0},null,null,{"$f":"(G32)","v":0}]
[32,"Jeg finder det nemt at gøre mere end én ting på én gang.      ",null,null,null,1,0,null,null,null,null,{"$f":"(G33)","v":0},{"$f":"(G33)","v":0}]
[33,"Når jeg taler i telefon, er jeg ikke sikker på, hvornår det er min tur til at tale",null,null,null,1,null,{"$f":"SUM(E34+F34)","v":1},null,{"$f":"(H34)","v":1},null,null,{"$f":"(H34)","v":1}]
[34,"Jeg nyder at gøre ting spontant",null,1,null,null,{"$f":"SUM(C35+D35)","v":1},null,null,null,null,{"$f":"(G35)","v":1}]
[35,"Jeg er ofte den sidste til at forstå en vittighed.  ",null,1,null,null,null,{"$f":"SUM(E36+F36)","v":0},null,null,{"$f":"(H36)","v":0},{"$f":"(H36)","v":0}]
[36,"Jeg finder det nemt at finde ud af, hvad nogen tænker eller føler bare ved at se på deres ansigt",null,null,1,null,{"$f":"SUM(C37+D37)","v":0},null,null,null,{"$f":"(G37)","v":0},null,{"$f":"(G37)","v":0}]
[37,"Hvis der er en afbrydelse, kan jeg nemt gå tilbage til det, jeg lige gjorde",null,null,null,1,{"$f":"SUM(C38+D38)","v":0},null,null,null,null,{"$f":"(G38)","v":0},{"$f":"(G38)","v":0}]
[38,"Jeg er god til at skabe samspil med andre",null,null,1,null,{"$f":"SUM(C39+D39)","v":0},null,null,{"$f":"(G39)","v":0},{"$f":"(G39)","v":0}]
[39,"Andre fortæller mig ofte, at jeg fortsætter og fortsætter med at sige og gøre det samme.         ",null,null,1,null,null,{"$f":"SUM(E40+F40)","v":1},null,{"$f":"(H41)","v":0},null,null,{"$f":"(H41)","v":0}]
[40,"Da jeg var ung, plejede jeg at spille spil ved at foregive der var andre børn",null,null,null,1,{"$f":"SUM(C41+D41)","v":0},null,null,null,null,{"$f":"(G41)","v":0}]
[41,"Jeg kan godt lide at indsamle oplysninger og kategorier af ting (fx typer af biler, fugle, tog, planter).  ",null,null,1,null,null,{"$f":"SUM(E42+F42)","v":1},null,null,null,{"$f":"(H42)","v":1},{"$f":"(H42)","v":1}]
[42,"Jeg finder det svært at forestille mig, hvordan det ville være at være en anden fx skuespiller.         ",null,null,1,null,null,{"$f":"SUM(E43+F43)","v":1},null,null,{"$f":"(H43)","v":1},{"$f":"(H43)","v":1}]
[43,"Jeg vil gerne omhyggeligt planlægge alle aktiviteter, jeg deltager i.         ",null,null,null,1,null,{"$f":"SUM(E44+F44)","v":1},null,null,null,{"$f":"(H44)","v":1},{"$f":"(H44)","v":1}]
[44,"Jeg nyder sociale begivenheder",null,1,null,null,{"$f":"SUM(C45+D45)","v":1},null,null,{"$f":"(G45)","v":1},{"$f":"(G45)","v":1}]
[45,"Jeg finder det svært at finde ud af folks hensigter",null,1,null,null,null,{"$f":"SUM(E46+F46)","v":0},null,{"$f":"(H46)","v":0},{"$f":"(H46)","v":0}]
[46,"Nye situationer gør mig ivrig og giver energi",null,1,null,null,null,{"$f":"SUM(E47+F47)","v":0},null,null,{"$f":"(H47)","v":0},null,{"$f":"(H47)","v":0}]
[47,"Jeg nyder at møde nye mennesker.   ",null,null,1,null,{"$f":"SUM(C48+D48)","v":0},null,null,{"$f":"(G48)","v":0},{"$f":"(G48)","v":0}]
[48,"Jeg er en god diplomat - at finde gode løsninger så alle er tilfredse",null,null,null,1,{"$f":"SUM(C49+D49)","v":0},null,null,{"$f":"(G49)","v":0},{"$f":"(G49)","v":0}]
[49,"Jeg er ikke særlig god til at huske folks fødselsdage. ",null,null,1,null,{"$f":"SUM(C50+D50)","v":0},null,null,null,null,{"$f":"(G50)","v":0},{"$f":"(G50)","v":0}]
[50,"Jeg finder det nemt at spille spil med små børn, hvor man skal \"tabe med vilje\"",null,1,null,null,{"$f":"SUM(C51+D51)","v":1},null,null,{"$f":"(G51)","v":1},{"$f":"(G51)","v":1}]
[null,"Værdi",1,2,3,4,null,null,null,{"$f":"SUM(J2:J51)","v":6},{"$f":"SUM(K2:K51)","v":12},13,8]
[null,"I alt",{"$f":"SUM(C2:C51)","v":4},17,16,13,12,15]
[null,"Kommunikation i %",null,null,null,{"$f":"J56","v":0.375},null,null,null,"Autisme analyse - Cohens model"]
[null,"Det sociale i %",null,null,null,{"$f":"K56","v":0.52173913043478259},null,null,null,"Kommunikation","Det sociale","Forestillingsevne","Opmærksomhed"]
[null,"Forestillingsevne i %",null,null,null,{"$f":"L56","v":0.56521739130434778},null,null,null,{"$f":"((J52)/16*100)%","v":0.375},{"$f":"((K52)/23*100)%","v":0.52173913043478259},{"$f":"((L52)/23*100)%","v":0.56521739130434778},{"$f":"((M52)/19*100)%","v":0.42105263157894735}]
[null,"Opmærksomhed i %",null,null,null,{"$f":"M56","v":0.42105263157894735}]
[null,"Graden af autismespektrumforstyrrelse i %",null,null,null,{"$f":"L66/100","v":0.54},null,null,null,"Autisme analyse - Cohens model"]
[null,"Forklaring",null,null,null,null,null,null,null,"Kommunikation","Det sociale","Forestillingsevne","Opmærksomhed"]
[null,"Ikke sandsynligt ",null,null,null,"0 - 58%",null,null,null,{"$f":"J56*100","v":37.5},{"$f":"K56*100","v":52.173913043478258},{"$f":"L56*100","v":56.521739130434781},{"$f":"M56*100","v":42.105263157894733}]
[null,"Mulighed for autisme",null,null,null,"59-66%"]
[null,"Høj sandsynlighed for autisme",null,null,null,"Over 66%"]
[]
[]
[null,null,null,null,null,null,null,null,null,null,null,"Graden af autismespektrumforstyrrelse"]
[null,null,null,null,null,null,null,null,null,null,null,{"$f":"((G53+H53)*2)","v":54}]

{"sheet":"Spørgeskema - Klient","index":1,"n_rows":66,"n_cols":13,"rows_kept":66,"cut":false,"hidden":false,"merged":[]}
[null,"ASPERGER- OG AUTISMETEST","Helt enig","Lidt enig","Lidt uenig","Helt uenig","Score","Score",null,"kommunikation","det sociale","forestillingsevne","opmærksomhed"]
[1,"Jeg foretrækker at gøre ting med andre i stedet for alene.   ",null,null,null,1,null,{"$f":"SUM(E2+F2)","v":1},null,null,{"$f":"(H2)","v":1}]
[2,"Jeg foretrækker at gøre ting på samme måde igen og igen.  ",null,1,null,null,{"$f":"SUM(C3+D3)","v":1},null,null,null,null,{"$f":"(G3)","v":1}]
[3,"Hvis jeg forsøger at forestille mig noget, finder jeg det meget nemt at danne et indre billede",null,null,1,null,null,{"$f":"SUM(E4+F4)","v":1},null,null,null,{"$f":"(H4)","v":1}]
[4,"Jeg bliver ofte så stærkt optaget af én ting, at jeg taber interessen for andre ting.",null,null,null,1,{"$f":"SUM(C5+D5)","v":0},null,null,null,null,null,{"$f":"(G5)","v":0}]
[5,"Jeg bemærker ofte små lyde, når andre ikke gør det",null,null,null,1,null,{"$f":"SUM(E6+F6)","v":1},null,null,null,{"$f":"(H6)","v":1}]
[6,"Jeg bemærker normalt bil nummerplader eller den slags informationer",null,1,null,null,null,{"$f":"SUM(E7+F7)","v":0},null,null,null,null,{"$f":"(H7)","v":0}]
[7,"Andre mennesker fortæller mig ofte, at det jeg sagde er uhøfligt, selvom jeg synes det er høfligt",1,null,null,null,null,{"$f":"SUM(E8+F8)","v":0},null,{"$f":"(H8)","v":0},{"$f":"(H8)","v":0}]
[8,"Når jeg læser en historie, kan jeg nemt forestille mig, hvordan personerne ser ud",null,1,null,null,{"$f":"SUM(C9+D9)","v":1},null,null,null,null,{"$f":"(G9)","v":1}]
[9,"Jeg er fascineret af datoer",null,null,null,1,null,{"$f":"SUM(E10+F10)","v":1},null,null,null,null,{"$f":"(G10)","v":0}]
[10,"I en social gruppe kan jeg nemt holde øje med flere forskellige menneskers samtaler",null,1,null,null,{"$f":"SUM(C11+D11)","v":1},null,null,null,{"$f":"(G11)","v":1}]
[11,"Jeg finder det nemt at indgå i forskellige sociale forhold",null,1,null,null,{"$f":"SUM(C12+D12)","v":1},null,null,null,{"$f":"(G12)","v":1}]
[12,"Jeg har tendens til at lægge mærke til detaljer, som andre ikke gør.         ",null,1,null,null,null,{"$f":"SUM(E13+F13)","v":0},null,null,null,null,{"$f":"H13","v":0}]
[13,"Jeg vil hellere gå på et bibliotek end til en fest",null,null,1,null,null,{"$f":"SUM(E14+F14)","v":1},null,null,{"$f":"(H14)","v":1}]
[14,"Jeg finder ud af at lave historier nemt",null,null,1,null,{"$f":"SUM(C15+D15)","v":0},null,null,{"$f":"(G15)","v":0}]
[15,"Jeg finder mig selv tiltrukket stærkere til ting end mennesker",null,null,1,null,{"$f":"SUM(C16+D16)","v":0},null,null,null,{"$f":"(G16)","v":0}]
[16,"Jeg har tendens til at have meget stærke interesser, som jeg bliver ked af, hvis jeg ikke kan forfølge",null,null,null,1,null,{"$f":"SUM(E17+F17)","v":1},null,null,null,{"$f":"(H17)","v":1}]
[17,"Jeg nyder social smalltalk",null,1,null,null,{"$f":"SUM(C18+D18)","v":1},null,null,{"$f":"(G18)","v":1},{"$f":"(G18)","v":1}]
[18,"Når jeg taler, er det ikke altid let for andre at få et ord i indført.    ",null,null,null,1,null,{"$f":"SUM(E19+F19)","v":1},null,{"$f":"(H19)","v":1},{"$f":"H19","v":1}]
[19,"Jeg er fascineret af tal",null,null,null,1,null,1,null,null,null,{"$f":"(H20)","v":1},{"$f":"(H20)","v":1}]
[20,"Når jeg læser en historie, finder jeg det svært at se personernes intentioner",null,null,1,null,null,1,null,null,{"$f":"(H21)","v":1},{"$f":"(H21)","v":1}]
[21,"Jeg kan ikke lide fiktions genren",null,null,null,1,null,1,null,null,null,{"$f":"(H22)","v":1}]
[22,"Jeg synes det er svært at få nye venner",null,1,null,null,null,0,null,{"$f":"(H23)","v":0},{"$f":"(H23)","v":0}]
[23,"Jeg ser mønstre i ting hele tiden.     ",null,null,1,null,null,1,null,null,null,{"$f":"(H24)","v":1},{"$f":"(H24)","v":1}]
[24,"Jeg vil hellere gå i teatret end på et museum.   ",null,1,null,null,{"$f":"SUM(C25+D25)","v":1},null,null,null,{"$f":"(G25)","v":1},{"$f":"(G25)","v":1}]
[25,"Det forstyrrer mig ikke, hvis min daglige rutine er forstyrret.    ",null,1,null,null,{"$f":"SUM(C26+D26)","v":1},null,null,null,{"$f":"(G26)","v":1},{"$f":"(G26)","v":1}]
[26,"Jeg ved ikke, hvordan man holder en samtale i gang",1,null,null,null,null,{"$f":"SUM(E27+F27)","v":0},null,{"$f":"(H27)","v":0},{"$f":"(H27)","v":0}]
[27,"Jeg finder det nemt at 'læse mellem linjerne', når nogen taler til mig.         ",null,1,null,null,{"$f":"SUM(C28+D28)","v":1},null,null,{"$f":"(G28)","v":1},null,{"$f":"(G28)","v":1}]
[28,"Jeg plejer at koncentrere mig om hele billedet, snarere end på de små detaljer. ",null,1,null,null,{"$f":"SUM(C29+D29)","v":1},null,null,null,null,{"$f":"(G29)","v":1},{"$f":"(G29)","v":1}]
[29,"Jeg er ikke særlig god til at huske telefonnumre",1,null,null,null,{"$f":"SUM(C30+D30)","v":1},null,null,null,null,null,{"$f":"(G30)","v":1}]
[30,"Jeg bemærker normalt ikke små ændringer i en situation eller en persons udseende",1,null,null,null,{"$f":"SUM(C31+D31)","v":1},null,null,null,null,{"$f":"(G31)","v":1},{"$f":"(G31)","v":1}]
[31,"Jeg ved, om nogen, der lytter til mig, keder sig.",null,null,null,1,1,null,null,{"$f":"(G32)","v":1},null,null,{"$f":"(G32)","v":1}]
[32,"Jeg finder det nemt at gøre mere end én ting på én gang.      ",null,null,null,1,1,null,null,null,null,{"$f":"(G33)","v":1},{"$f":"(G33)","v":1}]
[33,"Når jeg taler i telefon, er jeg ikke sikker på, hvornår det er min tur til at tale",null,null,null,1,null,{"$f":"SUM(E34+F34)","v":1},null,{"$f":"(H34)","v":1},null,null,{"$f":"(H34)","v":1}]
[34,"Jeg nyder at gøre ting spontant",null,1,null,null,{"$f":"SUM(C35+D35)","v":1},null,null,null,null,{"$f":"(G35)","v":1}]
[35,"Jeg er ofte den sidste til at forstå en vittighed.  ",null,null,null,1,null,{"$f":"SUM(E36+F36)","v":1},null,null,{"$f":"(H36)","v":1},{"$f":"(H36)","v":1}]
[36,"Jeg finder det nemt at finde ud af, hvad nogen tænker eller føler bare ved at se på deres ansigt",null,null,1,null,{"$f":"SUM(C37+D37)","v":0},null,null,null,{"$f":"(G37)","v":0},null,{"$f":"(G37)","v":0}]
[37,"Hvis der er en afbrydelse, kan jeg nemt gå tilbage til det, jeg lige gjorde",1,null,null,null,{"$f":"SUM(C38+D38)","v":1},null,null,null,null,{"$f":"(G38)","v":1},{"$f":"(G38)","v":1}]
[38,"Jeg er god til at skabe samspil med andre",null,null,1,null,{"$f":"SUM(C39+D39)","v":0},null,null,{"$f":"(G39)","v":0},{"$f":"(G39)","v":0}]
[39,"Andre fortæller mig ofte, at jeg fortsætter og fortsætter med at sige og gøre det samme.         ",null,null,1,null,null,{"$f":"SUM(E40+F40)","v":1},null,{"$f":"(H41)","v":0},null,null,{"$f":"(H41)","v":0}]
[40,"Da jeg var ung, plejede jeg at spille spil ved at foregive der var andre børn",null,1,null,null,{"$f":"SUM(C41+D41)","v":1},null,null,null,null,{"$f":"(G41)","v":1}]
[41,"Jeg kan godt lide at indsamle oplysninger og kategorier af ting (fx typer af biler, fugle, tog, planter).  ",null,null,1,null,null,{"$f":"SUM(E42+F42)","v":1},null,null,null,{"$f":"(H42)","v":1},{"$f":"(H42)","v":1}]
[42,"Jeg finder det svært at forestille mig, hvordan det ville være at være en anden fx skuespiller.         ",null,null,1,null,null,{"$f":"SUM(E43+F43)","v":1},null,null,{"$f":"(H43)","v":1},{"$f":"(H43)","v":1}]
[43,"Jeg vil gerne omhyggeligt planlægge alle aktiviteter, jeg deltager i.         ",null,null,null,1,null,{"$f":"SUM(E44+F44)","v":1},null,null,null,{"$f":"(H44)","v":1},{"$f":"(H44)","v":1}]
[44,"Jeg nyder sociale begivenheder",null,1,null,null,{"$f":"SUM(C45+D45)","v":1},null,null,{"$f":"(G45)","v":1},{"$f":"(G45)","v":1}]
[45,"Jeg finder det svært at finde ud af folks hensigter",null,1,null,null,null,{"$f":"SUM(E46+F46)","v":0},null,{"$f":"(H46)","v":0},{"$f":"(H46)","v":0}]
[46,"Nye situationer gør mig ivrig og giver energi",null,1,null,null,null,{"$f":"SUM(E47+F47)","v":0},null,null,{"$f":"(H47)","v":0},null,{"$f":"(H47)","v":0}]
[47,"Jeg nyder at møde nye mennesker.   ",null,null,1,null,{"$f":"SUM(C48+D48)","v":0},null,null,{"$f":"(G48)","v":0},{"$f":"(G48)","v":0}]
[48,"Jeg er en god diplomat - at finde gode løsninger så alle er tilfredse",null,null,null,1,{"$f":"SUM(C49+D49)","v":0},null,null,{"$f":"(G49)","v":0},{"$f":"(G49)","v":0}]
[49,"Jeg er ikke særlig god til at huske folks fødselsdage. ",null,1,null,null,{"$f":"SUM(C50+D50)","v":1},null,null,null,null,{"$f":"(G50)","v":1},{"$f":"(G50)","v":1}]
[50,"Jeg finder det nemt at spille spil med små børn, hvor man skal \"tabe med vilje\"",null,1,null,null,{"$f":"SUM(C51+D51)","v":1},null,null,{"$f":"(G51)","v":1},{"$f":"(G51)","v":1}]
[null,"Værdi",1,2,3,4,null,null,null,{"$f":"SUM(J2:J51)","v":7},{"$f":"SUM(K2:K51)","v":13},23,12]
[null,"I alt",{"$f":"SUM(C2:C51)","v":5},19,12,14,19,17]
[null,"Kommunikation i %",null,null,null,{"$f":"J56","v":0.4375},null,null,null,"Autisme analyse - Cohens model"]
[null,"Det sociale i %",null,null,null,{"$f":"K56","v":0.56521739130434778},null,null,null,"Kommunikation","Det sociale","Forestillingsevne","Opmærksomhed"]
[null,"Forestillingsevne i %",null,null,null,{"$f":"L56","v":1},null,null,null,{"$f":"((J52)/16*100)%","v":0.4375},{"$f":"((K52)/23*100)%","v":0.56521739130434778},{"$f":"((L52)/23*100)%","v":1},{"$f":"((M52)/19*100)%","v":0.63157894736842102}]
[null,"Opmærksomhed i %",null,null,null,{"$f":"M56","v":0.63157894736842102}]
[null,"Graden af autismespektrumforstyrrelse i %",null,null,null,{"$f":"L66/100","v":0.72},null,null,null,"Autisme analyse - Cohens model"]
[null,"Forklaring",null,null,null,null,null,null,null,"Kommunikation","Det sociale","Forestillingsevne","Opmærksomhed"]
[null,"Ikke sandsynligt ",null,null,null,"0 - 58%",null,null,null,{"$f":"J56*100","v":43.75},{"$f":"K56*100","v":56.521739130434781},{"$f":"L56*100","v":100},{"$f":"M56*100","v":63.157894736842103}]
[null,"Mulighed for autisme",null,null,null,"59-66%"]
[null,"Høj sandsynlighed for autisme",null,null,null,"Over 66%"]
[]
[]
[null,null,null,null,null,null,null,null,null,null,null,"Graden af autismespektrumforstyrrelse"]
[null,null,null,null,null,null,null,null,null,null,null,{"$f":"((G53+H53)*2)","v":72}]

{"sheet":"Grafisk opgørelse","index":2,"n_rows":3,"n_cols":16,"rows_kept":3,"cut":false,"hidden":false,"merged":[]}
[]
[]
[null,"Pæd team",null,null,null,null,null,null,null,null,null,null,null,null,null,"Klient"]